fUSD/lending_fUSD_20241123
["ID","MTS","AMOUNT","RATE_DAILY","PERIOD"]
[343075217,1732329058513,-150.0,0.00083446,90]
[343075218,1732329058523,-150.0,0.0008347,90]
[343075219,1732329058532,-150.0,0.00083486,90]
[343075220,1732329058542,-150.0,0.00083502,90]
[343075221,1732329058551,-150.0,0.00083504,90]
[343075222,1732329058561,-150.0,0.0008352,90]
[343075223,1732329058571,-150.0,0.00083521,90]
[343075224,1732329058581,-1500.0,0.00083537,90]
[343075225,1732329058590,-3750.0,0.00083563,120]
[343075226,1732329058600,-150.0,0.00083567,90]
[343075227,1732329058610,-150.0,0.00083567,90]
[343075228,1732329058620,-150.0,0.00083569,90]
[343075229,1732329058630,-150.0,0.0008357,90]
[343075230,1732329058639,-150.0,0.00083602,90]
[343075231,1732329058649,-150.0,0.00083621,90]
[343075232,1732329058658,-150.0,0.0008364,90]
[343075233,1732329058668,-150.0,0.00083652,90]
[343075234,1732329058679,-150.0,0.00083653,90]
[343075235,1732329058689,-150.0,0.00083673,90]
[343075236,1732329058698,-150.0,0.00083676,90]
[343075237,1732329058708,-1826.00097086,0.00083678,94]
[343075238,1732329058718,-150.0,0.00083678,90]
[343075239,1732329058727,-259.41850045,0.00083698,2]
[343075240,1732329058737,-1159.17955365,0.00083698,2]
[343075241,1732329058748,-684.17066282,0.00083698,2]
[343075242,1732329058759,-270.91839298,0.00083698,30]
[343075243,1732329058769,-227.43899727,0.00083698,2]
[343075244,1732329058779,-150.0,0.00083704,90]
[343075245,1732329058788,-157.56,0.00083714,120]
[343075246,1732329058798,-150.0,0.00083721,90]
[343075247,1732329058809,-150.0,0.00083723,90]
[343075248,1732329058818,-150.0,0.00083761,90]
[343075249,1732329058828,-150.0,0.00083785,90]
[343075250,1732329058837,-40294.95981804,0.00083789,120]
[343075251,1732329058846,-150.0,0.0008379,90]
[343075252,1732329058856,-689.72,0.00083796,120]
[343075253,1732329058865,-1743.87,0.00083796,120]
[343075254,1732329058875,-588.91,0.00083797,120]
[343075255,1732329058885,-588.91,0.00083797,120]
[343075256,1732329058895,-588.91,0.00083797,120]
[343075257,1732329058905,-588.91,0.00083797,120]
[343075258,1732329058917,-500.0,0.00083797,120]
[343075259,1732329058930,-500.0,0.00083797,120]
[343075260,1732329058940,-500.0,0.00083797,120]
[343075261,1732329058951,-623.97,0.00083797,120]
[343075262,1732329058962,-623.97,0.00083797,120]
[343075263,1732329058972,-623.97,0.00083797,120]
[343075264,1732329058982,-862.26,0.00083797,120]
[343075265,1732329058993,-862.26,0.00083797,120]
[343075266,1732329059002,-862.26,0.00083797,120]
[343075267,1732329059012,-500.0,0.00083797,120]
[343075268,1732329059022,-500.0,0.00083797,120]
[343075269,1732329059032,-500.0,0.00083797,120]
[343075270,1732329059041,-689.72,0.00083797,120]
[343075271,1732329059051,-689.72,0.00083797,120]
[343075272,1732329059060,-689.72,0.00083797,120]
[343075273,1732329059070,-1743.87,0.00083797,120]
[343075274,1732329059080,-1743.87,0.00083797,120]
[343075275,1732329059089,-1743.87,0.00083797,120]
[343075276,1732329059101,-500.0,0.00083797,120]
[343075277,1732329059112,-221.83636261,0.00083797,120]
[343075278,1732329059121,-439.5271563,0.00083797,120]
[343075279,1732329059131,-1749.83,0.00083797,120]
[343075280,1732329059140,-1749.83,0.00083797,120]
[343075281,1732329059150,-1749.83,0.00083797,120]
[343075282,1732329059161,-1749.83,0.00083797,120]
[343075283,1732329059174,-500.0,0.00083797,120]
[343075284,1732329059184,-500.0,0.00083797,120]
[343075285,1732329059195,-500.0,0.00083797,120]
[343075286,1732329059205,-500.0,0.00083797,120]
[343075287,1732329059216,-754749.857,0.00083798,60]
[343075288,1732329059225,-294.797614,0.00083798,120]
[343075289,1732329059235,-289.736501,0.00083798,120]
[343075290,1732329059245,-289.736501,0.00083798,120]
[343075291,1732329059255,-151.0,0.00083798,120]
[343075292,1732329059264,-151.0,0.00083798,120]
[343075293,1732329059274,-151.0,0.00083798,120]
[343075294,1732329059284,-208.403674,0.00083798,120]
[343075295,1732329059294,-151.0,0.00083798,120]
[343075296,1732329059303,-208.403674,0.00083798,120]
[343075297,1732329059313,-192.306033,0.00083798,120]
[343075298,1732329059323,-151.0,0.00083798,120]
[343075299,1732329059333,-156.61777,0.00083798,120]
[343075300,1732329059343,-318.383165,0.00083798,120]
[343075301,1732329059352,-318.383165,0.00083798,120]
[343075302,1732329059362,-277.433469,0.00083798,120]
[343075303,1732329059371,-277.433469,0.00083798,120]
[343075304,1732329059381,-320.737155,0.00083798,120]
[343075305,1732329059391,-320.737155,0.00083798,120]
[343075306,1732329059400,-151.0,0.00083798,120]
[343075307,1732329059409,-212.093178,0.00083798,120]
[343075308,1732329059419,-212.093178,0.00083798,120]
[343075309,1732329059430,-159.391986,0.00083798,120]
[343075310,1732329059440,-159.391986,0.00083798,120]
[343075311,1732329059449,-151.0,0.00083798,120]
[343075312,1732329059458,-164.712135,0.00083798,120]
[343075313,1732329059468,-164.712135,0.00083798,120]
[343075314,1732329059478,-202.236743,0.00083798,120]
[343075315,1732329059487,-202.236743,0.00083798,120]
[343075316,1732329059497,-151.0,0.00083798,120]
[343075317,1732329059506,-195.490455,0.00083798,60]
[343075318,1732329059516,-151.0,0.00083798,120]
[343075319,1732329059526,-151.0,0.00083798,120]
[343075320,1732329059536,-151.0,0.00083798,120]
[343075321,1732329059545,-151.0,0.00083798,120]
[343075322,1732329059555,-151.0,0.00083798,120]
[343075323,1732329059565,-201.112177,0.00083798,120]
[343075324,1732329059575,-151.0,0.00083798,120]
[343075325,1732329059586,-201.112177,0.00083798,120]
[343075326,1732329059596,-151.0,0.00083798,120]
[343075327,1732329059606,-151.0,0.00083798,120]
[343075328,1732329059617,-151.0,0.00083798,120]
[343075329,1732329059627,-151.0,0.00083798,120]
[343075330,1732329059638,-151.0,0.00083798,120]
[343075331,1732329059647,-151.0,0.00083798,120]
[343075332,1732329059657,-151.0,0.00083798,120]
[343075333,1732329059666,-151.0,0.00083798,120]
[343075334,1732329059677,-223.66277,0.00083798,110]
[343075335,1732329059687,-223.66277,0.00083798,110]
[343075336,1732329059697,-300.051,0.00083798,120]
[343075337,1732329059707,-300.051,0.00083798,120]
[343075338,1732329059717,-151.0,0.00083798,120]
[343075339,1732329059726,-151.0,0.00083798,120]
[343075340,1732329059736,-151.0,0.00083798,120]
[343075341,1732329059746,-436.3605,0.00083798,120]
[343075342,1732329059755,-436.3605,0.00083798,120]
[343075343,1732329059765,-320.481507,0.00083798,120]
[343075344,1732329059776,-320.481507,0.00083798,120]
[343075345,1732329059786,-180.030161,0.00083798,120]
[343075346,1732329059795,-381.374363,0.00083798,120]
[343075347,1732329059805,-151.0,0.00083798,120]
[343075348,1732329059814,-180.030161,0.00083798,120]
[343075349,1732329059823,-381.374363,0.00083798,120]
[343075350,1732329059832,-151.0,0.00083798,120]
[343075351,1732329059841,-151.0,0.00083798,120]
[343075352,1732329059851,-151.0,0.00083798,120]
[343075353,1732329059861,-418.927375,0.00083798,120]
[343075354,1732329059870,-418.927375,0.00083798,120]
[343075355,1732329059879,-300.407465,0.00083798,120]
[343075356,1732329059888,-300.407465,0.00083798,120]
[343075357,1732329059898,-500.0,0.00083798,120]
[343075358,1732329059907,-151.0,0.00083798,120]
[343075359,1732329059917,-398.695749,0.00083798,120]
[343075360,1732329059927,-398.695749,0.00083798,120]
[343075361,1732329059937,-151.0,0.00083798,120]
[343075362,1732329059947,-426.890858,0.00083798,120]
[343075363,1732329059956,-151.0,0.00083798,120]
[343075364,1732329059966,-426.890858,0.00083798,120]
[343075365,1732329059975,-314.968009,0.00083798,120]
[343075366,1732329059985,-314.968009,0.00083798,120]
[343075367,1732329059995,-480.41116,0.00083798,30]
[343075368,1732329060004,-480.41116,0.00083798,30]
[343075369,1732329060013,-215.253612,0.00083798,120]
[343075370,1732329060023,-289.053549,0.00083798,120]
[343075371,1732329060033,-215.253612,0.00083798,120]
[343075372,1732329060043,-289.053549,0.00083798,120]
[343075373,1732329060053,-500.0,0.00083798,120]
[343075374,1732329060064,-306.452041,0.00083798,120]
[343075375,1732329060074,-1247.189874,0.00083798,120]
[343075376,1732329060085,-306.452041,0.00083798,120]
[343075377,1732329060095,-1247.189874,0.00083798,120]
[343075378,1732329060105,-213.171717,0.00083798,120]
[343075379,1732329060119,-213.171717,0.00083798,120]
[343075380,1732329060129,-151.0,0.00083798,120]
[343075381,1732329060139,-336.316033,0.00083798,120]
[343075382,1732329060148,-151.0,0.00083798,120]
[343075383,1732329060158,-336.316033,0.00083798,120]
[343075384,1732329060168,-350.17,0.00083798,120]
[343075385,1732329060180,-350.17,0.00083798,120]
[343075386,1732329060190,-151.0,0.00083798,120]
[343075387,1732329060200,-151.0,0.00083798,120]
[343075388,1732329060209,-151.0,0.00083798,120]
[343075389,1732329060219,-151.0,0.00083798,120]
[343075390,1732329060230,-151.0,0.00083798,120]
[343075391,1732329060239,-151.0,0.00083798,120]
[343075392,1732329060249,-151.0,0.00083798,120]
[343075393,1732329060258,-151.0,0.00083798,120]
[343075394,1732329060268,-344.509058,0.00083798,120]
[343075395,1732329060277,-151.0,0.00083798,120]
[343075396,1732329060286,-344.509058,0.00083798,120]
[343075397,1732329060296,-417.95,0.00083798,7]
[343075398,1732329060305,-417.95,0.00083798,7]
[343075399,1732329060315,-167.460718,0.00083798,120]
[343075400,1732329060324,-167.460718,0.00083798,120]
[343075401,1732329060333,-151.0,0.00083798,120]
[343075402,1732329060342,-151.0,0.00083798,120]
[343075403,1732329060351,-151.0,0.00083798,120]
[343075404,1732329060360,-151.0,0.00083798,120]
[343075405,1732329060370,-151.0,0.00083798,120]
[343075406,1732329060379,-397.408892,0.00083798,120]
[343075407,1732329060488,-151.0,0.00083798,120]
[343075408,1732329060499,-397.408892,0.00083798,120]
[343075409,1732329060508,-299.942097,0.00083798,120]
[343075410,1732329060522,-151.0,0.00083798,120]
[343075411,1732329060531,-299.942097,0.00083798,120]
[343075412,1732329060540,-151.0,0.00083798,120]
[343075413,1732329060549,-236.007357,0.00083798,120]
[343075414,1732329060558,-220.737463,0.00083798,120]
[343075415,1732329060567,-220.737463,0.00083798,120]
[343075416,1732329060575,-1383.350227,0.00083798,120]
[343075417,1732329060585,-1383.350227,0.00083798,120]
[343075418,1732329060594,-151.0,0.00083798,120]
[343075419,1732329060603,-215.564739,0.00083798,120]
[343075420,1732329060612,-215.564739,0.00083798,120]
[343075421,1732329060621,-174.922426,0.00083798,120]
[343075422,1732329060630,-174.922426,0.00083798,120]
[343075423,1732329060640,-255.675184,0.00083798,120]
[343075424,1732329060649,-255.675184,0.00083798,120]
[343075425,1732329060658,-212.296047,0.00083798,7]
[343075426,1732329060667,-151.0,0.00083798,120]
[343075427,1732329060677,-233.888835,0.00083798,120]
[343075428,1732329060686,-212.11572,0.00083798,120]
[343075429,1732329060695,-212.296047,0.00083798,7]
[343075430,1732329060703,-233.888835,0.00083798,120]
[343075431,1732329060712,-212.11572,0.00083798,120]
[343075432,1732329060722,-151.0,0.00083798,120]
[343075433,1732329060731,-950.017311,0.00083798,120]
[343075434,1732329060740,-950.017311,0.00083798,120]
[343075435,1732329060749,-207.740457,0.00083798,120]
[343075436,1732329060758,-348.282074,0.00083798,120]
[343075437,1732329060766,-207.740457,0.00083798,120]
[343075438,1732329060775,-348.282074,0.00083798,120]
[343075439,1732329060784,-258.38867662,0.00083799,120]
[343075440,1732329060794,-1128.01894773,0.00083799,120]
[343075441,1732329060803,-588.91,0.00083799,120]
[343075442,1732329060812,-588.91,0.00083799,120]
[343075443,1732329060822,-588.91,0.00083799,120]
[343075444,1732329060831,-588.91,0.00083799,120]
[343075445,1732329060839,-588.91,0.00083799,120]
[343075446,1732329060849,-588.91,0.00083799,120]
[343075447,1732329060858,-588.91,0.00083799,120]
[343075448,1732329060867,-589.05667648,0.00083799,120]
[343075449,1732329060876,-500.0,0.00083799,120]
[343075450,1732329060885,-623.97,0.00083799,120]
[343075451,1732329060893,-862.26,0.00083799,120]
[343075452,1732329060901,-500.0,0.00083799,120]
[343075453,1732329060910,-689.72,0.00083799,120]
[343075454,1732329060920,-1743.87,0.00083799,120]
[343075455,1732329060933,-1749.83,0.00083799,120]
[343075456,1732329060943,-1749.83,0.00083799,120]
[343075457,1732329060952,-1749.83,0.00083799,120]
[343075458,1732329060962,-1749.83,0.00083799,120]
[343075459,1732329060972,-1749.83,0.00083799,120]
[343075460,1732329060981,-1749.83,0.00083799,120]
[343075461,1732329060990,-1749.83,0.00083799,120]
[343075462,1732329061000,-1749.92646929,0.00083799,120]
[343075463,1732329061010,-500.0,0.00083799,120]
[343075464,1732329061019,-500.0,0.00083799,120]
[343075465,1732329061029,-500.0,0.00083799,120]
[343075466,1732329061039,-548.38897615,0.00083799,120]
[343075467,1732329061048,-294.797614,0.000838,120]
[343075468,1732329061058,-289.736501,0.000838,120]
[343075469,1732329061068,-289.736501,0.000838,120]
[343075470,1732329061077,-150.0,0.000838,120]
[343075471,1732329061087,-192.306033,0.000838,120]
[343075472,1732329061098,-151.0,0.000838,120]
[343075473,1732329061111,-318.383165,0.000838,120]
[343075474,1732329061120,-318.383165,0.000838,120]
[343075475,1732329061130,-277.433469,0.000838,120]
[343075476,1732329061139,-277.433469,0.000838,120]
[343075477,1732329061150,-320.737155,0.000838,120]
[343075478,1732329061160,-320.737155,0.000838,120]
[343075479,1732329061170,-189.525623,0.000838,120]
[343075480,1732329061182,-159.391986,0.000838,120]
[343075481,1732329061194,-159.391986,0.000838,120]
[343075482,1732329061204,-151.0,0.000838,120]
[343075483,1732329061214,-202.236743,0.000838,120]
[343075484,1732329061225,-202.236743,0.000838,120]
[343075485,1732329061235,-300.051,0.000838,120]
[343075486,1732329061245,-300.051,0.000838,120]
[343075487,1732329061256,-151.0,0.000838,120]
[343075488,1732329061266,-151.0,0.000838,120]
[343075489,1732329061276,-151.0,0.000838,120]
[343075490,1732329061287,-436.3605,0.000838,120]
[343075491,1732329061297,-436.3605,0.000838,120]
[343075492,1732329061307,-320.481507,0.000838,120]
[343075493,1732329061316,-320.481507,0.000838,120]
[343075494,1732329061326,-180.030161,0.000838,120]
[343075495,1732329061335,-151.0,0.000838,120]
[343075496,1732329061345,-180.030161,0.000838,120]
[343075497,1732329061354,-273.767459,0.000838,120]
[343075498,1732329061363,-151.0,0.000838,120]
[343075499,1732329061372,-151.0,0.000838,120]
[343075500,1732329061382,-418.927375,0.000838,120]
[343075501,1732329061391,-418.927375,0.000838,120]
[343075502,1732329061400,-300.407465,0.000838,120]
[343075503,1732329061409,-300.407465,0.000838,120]
[343075504,1732329061419,-151.0,0.000838,120]
[343075505,1732329061431,-398.695749,0.000838,120]
[343075506,1732329061440,-398.695749,0.000838,120]
[343075507,1732329061450,-151.0,0.000838,120]
[343075508,1732329061459,-426.890858,0.000838,120]
[343075509,1732329061469,-426.890858,0.000838,120]
[343075510,1732329061478,-314.968009,0.000838,120]
[343075511,1732329061487,-314.968009,0.000838,120]
[343075512,1732329061497,-151.0,0.000838,120]
[343075513,1732329061506,-417.95,0.000838,7]
[343075514,1732329061516,-417.95,0.000838,7]
[343075515,1732329061525,-151.0,0.000838,120]
[343075516,1732329061534,-151.0,0.000838,120]
[343075517,1732329061544,-151.0,0.000838,120]
[343075518,1732329061553,-211.122713,0.000838,120]
[343075519,1732329061563,-397.408892,0.000838,120]
[343075520,1732329061572,-151.0,0.000838,120]
[343075521,1732329061581,-397.408892,0.000838,120]
[343075522,1732329061590,-151.0,0.000838,120]
[343075523,1732329061600,-6000.0,0.000838,30]
[343075524,1732329061610,-158.0,0.000838,80]
[343075525,1732329061619,-220.737463,0.000838,120]
[343075526,1732329061628,-220.737463,0.000838,120]
[343075527,1732329061638,-1383.350227,0.000838,120]
[343075528,1732329061647,-1383.350227,0.000838,120]
[343075529,1732329061658,-151.0,0.000838,120]
[343075530,1732329061667,-625559.406184,0.000838,2]
[343075531,1732329061679,-215.564739,0.000838,120]
[343075532,1732329061689,-215.564739,0.000838,120]
[343075533,1732329061699,-174.922426,0.000838,120]
[343075534,1732329061709,-174.922426,0.000838,120]
[343075535,1732329061718,-255.675184,0.000838,120]
[343075536,1732329061728,-255.675184,0.000838,120]
[343075537,1732329061738,-151.0,0.000838,120]
[343075538,1732329061747,-212.296047,0.000838,7]
[343075539,1732329061757,-233.888835,0.000838,120]
[343075540,1732329061767,-212.11572,0.000838,120]
[343075541,1732329061777,-212.296047,0.000838,7]
[343075542,1732329061786,-233.888835,0.000838,120]
[343075543,1732329061796,-212.11572,0.000838,120]
[343075544,1732329061811,-151.0,0.000838,120]
[343075545,1732329061821,-950.017311,0.000838,120]
[343075546,1732329061831,-950.017311,0.000838,120]
[343075547,1732329061841,-207.740457,0.000838,120]
[343075548,1732329061851,-348.282074,0.000838,120]
[343075549,1732329061860,-207.740457,0.000838,120]
[343075550,1732329061870,-348.282074,0.000838,120]
[343075551,1732329061880,-872.0,0.000838,120]
[343075552,1732329061889,-500.0,0.00083835,120]
[343075553,1732329061899,-500.0,0.00083835,120]
[343075554,1732329061908,-500.0,0.00083835,120]
[343075555,1732329061918,-500.0,0.00083835,120]
[343075556,1732329061930,-500.0,0.00083835,120]
[343075557,1732329061940,-500.0,0.00083835,120]
[343075558,1732329061950,-500.0,0.00083835,120]
[343075559,1732329061959,-500.0,0.00083835,120]
[343075560,1732329061969,-500.0,0.00083835,120]
[343075561,1732329061979,-500.0,0.00083835,120]
[343075562,1732329061988,-500.0,0.00083835,120]
[343075563,1732329061998,-500.0,0.00083835,120]
[343075564,1732329062007,-500.0,0.00083835,120]
[343075565,1732329062017,-500.0,0.00083835,120]
[343075566,1732329062026,-500.0,0.00083835,120]
[343075567,1732329062036,-500.0,0.00083835,120]
[343075568,1732329062046,-500.0,0.00083835,120]
[343075569,1732329062055,-500.0,0.00083835,120]
[343075570,1732329062065,-500.0,0.00083835,120]
[343075571,1732329062075,-500.0,0.00083835,120]
[343075572,1732329062085,-500.0,0.00083835,120]
[343075573,1732329062096,-532.73943292,0.00083835,120]
[343075574,1732329062107,-530.1177653,0.00083841,11]
[343075575,1732329062118,-7791.0244408,0.00083841,11]
[343075576,1732329062128,-623.97,0.00083898,120]
[343075577,1732329062138,-862.26,0.00083898,120]
[343075578,1732329062147,-962.58744864,0.00083899,120]
[343075579,1732329062158,-500.0,0.00083899,120]
[343075580,1732329062168,-623.97,0.00083899,120]
[343075581,1732329062180,-862.26,0.00083899,120]
[343075582,1732329062190,-500.0,0.00083899,120]
[343075583,1732329062199,-689.72,0.00083899,120]
[343075584,1732329062210,-689.72,0.00083899,120]
[343075585,1732329062219,-1743.87,0.00083899,120]
[343075586,1732329062229,-1743.87,0.00083899,120]
[343075587,1732329062239,-294.797614,0.000839,120]
[343075588,1732329062248,-289.736501,0.000839,120]
[343075589,1732329062258,-289.736501,0.000839,120]
[343075590,1732329062267,-151.0,0.000839,120]
[343075591,1732329062277,-151.0,0.000839,120]
[343075592,1732329062287,-151.0,0.000839,120]
[343075593,1732329062297,-208.403674,0.000839,120]
[343075594,1732329062306,-151.0,0.000839,120]
[343075595,1732329062316,-208.403674,0.000839,120]
[343075596,1732329062326,-192.306033,0.000839,120]
[343075597,1732329062335,-192.306033,0.000839,120]
[343075598,1732329062344,-151.0,0.000839,120]
[343075599,1732329062354,-318.383165,0.000839,120]
[343075600,1732329062363,-318.383165,0.000839,120]
[343075601,1732329062372,-277.433469,0.000839,120]
[343075602,1732329062382,-277.433469,0.000839,120]
[343075603,1732329062391,-320.737155,0.000839,120]
[343075604,1732329062400,-320.737155,0.000839,120]
[343075605,1732329062411,-212.093178,0.000839,120]
[343075606,1732329062420,-212.093178,0.000839,120]
[343075607,1732329062432,-159.391986,0.000839,120]
[343075608,1732329062442,-159.391986,0.000839,120]
[343075609,1732329062451,-151.0,0.000839,120]
[343075610,1732329062461,-164.712135,0.000839,120]
[343075611,1732329062470,-164.712135,0.000839,120]
[343075612,1732329062479,-202.236743,0.000839,120]
[343075613,1732329062488,-202.236743,0.000839,120]
[343075614,1732329062497,-151.0,0.000839,120]
[343075615,1732329062506,-151.0,0.000839,120]
[343075616,1732329062515,-151.0,0.000839,120]
[343075617,1732329062524,-151.0,0.000839,120]
[343075618,1732329062533,-151.0,0.000839,120]
[343075619,1732329062542,-151.0,0.000839,120]
[343075620,1732329062551,-201.112177,0.000839,120]
[343075621,1732329062560,-151.0,0.000839,120]
[343075622,1732329062568,-201.112177,0.000839,120]
[343075623,1732329062577,-151.0,0.000839,120]
[343075624,1732329062586,-151.0,0.000839,120]
[343075625,1732329062595,-151.0,0.000839,120]
[343075626,1732329062604,-151.0,0.000839,120]
[343075627,1732329062613,-151.0,0.000839,120]
[343075628,1732329062622,-151.0,0.000839,120]
[343075629,1732329062631,-151.0,0.000839,120]
[343075630,1732329062640,-151.0,0.000839,120]
[343075631,1732329062649,-223.66277,0.000839,110]
[343075632,1732329062658,-223.66277,0.000839,110]
[343075633,1732329062667,-300.051,0.000839,120]
[343075634,1732329062678,-300.051,0.000839,120]
[343075635,1732329062782,-151.0,0.000839,120]
[343075636,1732329062792,-151.0,0.000839,120]
[343075637,1732329062802,-151.0,0.000839,120]
[343075638,1732329062812,-436.3605,0.000839,120]
[343075639,1732329062821,-436.3605,0.000839,120]
[343075640,1732329062831,-320.481507,0.000839,120]
[343075641,1732329062840,-320.481507,0.000839,120]
[343075642,1732329062850,-381.374363,0.000839,120]
[343075643,1732329062860,-180.030161,0.000839,120]
[343075644,1732329062869,-151.0,0.000839,120]
[343075645,1732329062879,-180.030161,0.000839,120]
[343075646,1732329062888,-381.374363,0.000839,120]
[343075647,1732329062898,-151.0,0.000839,120]
[343075648,1732329062908,-151.0,0.000839,120]
[343075649,1732329062918,-418.927375,0.000839,120]
[343075650,1732329062929,-418.927375,0.000839,120]
[343075651,1732329062939,-300.407465,0.000839,120]
[343075652,1732329062948,-300.407465,0.000839,120]
[343075653,1732329062958,-151.0,0.000839,120]
[343075654,1732329062968,-398.695749,0.000839,120]
[343075655,1732329062979,-398.695749,0.000839,120]
[343075656,1732329062988,-164.824947,0.000839,120]
[343075657,1732329062999,-151.0,0.000839,120]
[343075658,1732329063009,-426.890858,0.000839,120]
[343075659,1732329063019,-426.890858,0.000839,120]
[343075660,1732329063029,-314.968009,0.000839,120]
[343075661,1732329063039,-314.968009,0.000839,120]
[343075662,1732329063050,-480.41116,0.000839,30]
[343075663,1732329063060,-480.41116,0.000839,30]
[343075664,1732329063070,-215.253612,0.000839,120]
[343075665,1732329063081,-289.053549,0.000839,120]
[343075666,1732329063092,-215.253612,0.000839,120]
[343075667,1732329063108,-289.053549,0.000839,120]
[343075668,1732329063118,-306.452041,0.000839,120]
[343075669,1732329063128,-1247.189874,0.000839,120]
[343075670,1732329063138,-306.452041,0.000839,120]
[343075671,1732329063150,-1247.189874,0.000839,120]
[343075672,1732329063160,-213.171717,0.000839,120]
[343075673,1732329063170,-213.171717,0.000839,120]
[343075674,1732329063185,-151.0,0.000839,120]
[343075675,1732329063198,-336.316033,0.000839,120]
[343075676,1732329063209,-167.376593,0.000839,120]
[343075677,1732329063220,-336.316033,0.000839,120]
[343075678,1732329063234,-350.17,0.000839,120]
[343075679,1732329063245,-350.17,0.000839,120]
[343075680,1732329063255,-151.0,0.000839,120]
[343075681,1732329063265,-151.0,0.000839,120]
[343075682,1732329063276,-151.0,0.000839,120]
[343075683,1732329063287,-151.0,0.000839,120]
[343075684,1732329063297,-151.0,0.000839,120]
[343075685,1732329063306,-151.0,0.000839,120]
[343075686,1732329063316,-297.798057,0.000839,120]
[343075687,1732329063326,-151.0,0.000839,120]
[343075688,1732329063336,-344.509058,0.000839,120]
[343075689,1732329063346,-151.0,0.000839,120]
[343075690,1732329063356,-344.509058,0.000839,120]
[343075691,1732329063366,-417.95,0.000839,7]
[343075692,1732329063377,-417.95,0.000839,7]
[343075693,1732329063387,-167.460718,0.000839,120]
[343075694,1732329063397,-167.460718,0.000839,120]
[343075695,1732329063408,-170.161241,0.000839,120]
[343075696,1732329063419,-151.0,0.000839,120]
[343075697,1732329063433,-151.0,0.000839,120]
[343075698,1732329063444,-151.0,0.000839,120]
[343075699,1732329063454,-397.408892,0.000839,120]
[343075700,1732329063465,-174.997585,0.000839,120]
[343075701,1732329063475,-397.408892,0.000839,120]
[343075702,1732329063485,-299.942097,0.000839,120]
[343075703,1732329063495,-151.0,0.000839,120]
[343075704,1732329063506,-299.942097,0.000839,120]
[343075705,1732329063518,-151.0,0.000839,120]
[343075706,1732329063529,-1200.0,0.000839,30]
[343075707,1732329063539,-220.737463,0.000839,120]
[343075708,1732329063549,-220.737463,0.000839,120]
[343075709,1732329063559,-1383.350227,0.000839,120]
[343075710,1732329063570,-1383.350227,0.000839,120]
[343075711,1732329063581,-151.0,0.000839,120]
[343075712,1732329063591,-289609.660866,0.000839,2]
[343075713,1732329063601,-215.564739,0.000839,120]
[343075714,1732329063611,-215.564739,0.000839,120]
[343075715,1732329063621,-174.922426,0.000839,120]
[343075716,1732329063631,-174.922426,0.000839,120]